bitfinex/quotes_ETHUSD_20240816
["timestamp","ask_amount","ask_price","bid_price","bid_amount"]
[1723768160107,3.89086,2570.2,2569.7,2.3986]
[1723768160498,3.89051,2570.4,2569.7,2.3986]
[1723768160499,3.89051,2570.4,2569.8,3.89135]
[1723768160686,3.89051,2570.4,2569.9,2.4774]
[1723768160892,3.89029,2570.5,2569.9,6.36859]
[1723768161192,3.89047,2570.4,2569.9,2.4774]
[1723768161388,3.89084,2570.2,2569.9,2.4774]
[1723768162222,3.89019,2570.6,2570.0,3.89104]
[1723768162384,3.89019,2570.6,2570.0,3.89103]
[1723768162588,3.88999,2570.7,2570.1,6.36821]
[1723768162823,3.88992,2570.8,2570.3,2.4774]
[1723768163119,7.7799,2570.8,2570.3,2.4774]
[1723768163306,3.89003,2570.7,2570.3,2.4774]
[1723768164328,15.04708726,2571.2,2570.3,2.4774]
[1723768164329,0.26145025,2570.6,2570.3,2.4774]
[1723768164495,3.88962,2571.0,2570.3,2.4774]
[1723768164697,7.44,2571.2,2570.8,3.8898]
[1723768164893,7.44,2571.2,2570.9,2.3161]
[1723768164894,11.32932,2571.2,2570.9,2.3161]
[1723768165111,3.88932,2571.2,2570.9,2.3161]
[1723768165315,3.88841,2571.8,2571.2,2.3906]
[1723768165505,3.88869,2571.6,2571.2,2.3906]
[1723768165741,3.88879,2571.5,2571.2,2.3906]
[1723768166038,3.88822,2571.9,2571.2,2.3906]
[1723768166334,0.26151898,2571.8,2571.5,3.88875]
[1723768166512,3.88795,2572.1,2571.5,3.88875]
[1723768166708,11.32765,2572.3,2571.7,2.2962]
[1723768166709,0.26151042,2572.0,2571.7,2.2962]
[1723768166909,7.44,2572.3,2571.7,6.18466]
[1723768166910,8.94477244,2572.3,2571.7,6.18466]
[1723768167166,0.2615164,2572.2,2571.8,3.88821]
[1723768167341,0.2615164,2572.2,2571.8,3.88831]
[1723768167553,0.2615164,2572.2,2571.7,10.07304]
[1723768167832,7.60697436,2572.8,2572.2,2.4112]
[1723768168059,0.26151913,2572.7,2572.2,2.4112]
[1723768168199,3.88743,2572.4,2572.2,2.4112]
[1723768168399,4.14908913,2572.3,2571.8,2.4112]
[1723768168711,0.26151913,2572.2,2571.8,2.4112]
[1723768169031,4.69122191,2572.3,2571.8,2.4112]
[1723768169032,0.80365191,2572.3,2571.8,2.4112]
[1723768169241,3.88743,2572.4,2571.8,6.29938]
[1723768169394,3.88718,2572.6,2572.1,2.3917]
[1723768169599,3.88689,2572.8,2572.1,2.3917]
[1723768169600,0.26155499,2572.5,2572.1,6.27954]
[1723768169808,0.26152907,2572.4,2572.1,6.27954]
[1723768170008,7.77382,2572.8,2572.1,6.27954]
[1723768170213,1.03892024,2572.7,2572.1,6.27954]
[1723768170457,0.26153824,2572.6,2572.1,6.27954]
[1723768170661,4.14874824,2572.6,2572.1,2.3917]
[1723768170947,3.88766,2572.3,2571.6,6.31463]
[1723768171127,4.14935824,2572.2,2571.6,2.4261]
[1723768171445,0.388766,2572.2,2571.6,6.31462]
[1723768171856,0.388766,2572.2,2571.6,2.4261]
[1723768172057,3.88781,2572.2,2571.6,2.4261]
[1723768172349,3.8877,2572.3,2571.7,3.88833]
[1723768172515,3.8877,2572.3,2571.8,3.88832]
[1723768172843,0.38877,2572.2,2571.9,3.88806]
[1723768173057,8.26729302,2572.5,2571.9,3.88806]
[1723768173341,4.37991302,2572.5,2571.9,3.88806]
[1723768173539,0.4379913,2572.4,2571.9,3.88806]
[1723768174933,0.4379913,2572.4,2572.0,2.3616]
[1723768175143,3.88714,2572.6,2572.0,2.3616]
[1723768175324,3.88732,2572.5,2572.0,2.3616]
[1723768175533,3.88768,2572.3,2572.0,2.3616]
[1723768175713,0.388768,2572.2,2572.0,2.3616]
[1723768176635,0.388768,2572.2,2571.7,2.4463]
[1723768176946,3.88829,2571.9,2571.4,2.4463]
[1723768177254,4.277119,2571.9,2571.4,2.4463]
[1723768178244,4.277119,2571.9,2571.4,6.33521]
[1723768178447,4.277119,2571.9,2571.4,2.4463]
[1723768179050,3.88752,2572.4,2571.4,2.4463]
[1723768179051,3.88768,2572.3,2571.4,2.4463]
[1723768179255,3.88774,2572.2,2571.6,3.88851]
[1723768179458,0.388774,2572.1,2571.6,3.88851]
[1723768179939,3.88803,2572.0,2571.4,6.3351]
[1723768180142,3.88803,2572.0,2571.4,2.4463]
[1723768180348,0.4276804,2571.9,2571.4,2.4463]
[1723768181833,3.88803,2572.0,2571.4,2.4463]
[1723768182221,3.88803,2572.0,2571.4,6.33511]
[1723768182960,3.88803,2572.0,2571.4,10.22395]
[1723768183332,3.88803,2572.0,2571.5,3.88875]
[1723768183942,3.88781,2572.2,2571.7,3.88839]
[1723768184270,3.88781,2572.2,2571.4,2.4463]
[1723768184271,4.276591,2572.2,2571.6,3.88853]
[1723768184433,0.388781,2572.2,2571.8,2.3256]
[1723768184774,0.4276431,2572.1,2571.8,2.3256]
[1723768184969,4.276581,2572.2,2571.8,2.3256]
[1723768187148,3.88793,2572.1,2571.5,6.21437]
[1723768187345,4.9375711,2572.1,2571.5,6.21437]
[1723768187683,3.88814,2572.0,2571.5,2.3256]
[1723768188185,3.88821,2571.9,2571.5,2.3256]
[1723768188399,3.88856,2571.7,2571.1,2.253]
[1723768188532,3.88856,2571.7,2571.1,6.14234]
[1723768189465,3.88825,2571.9,2571.2,3.88921]
[1723768189665,8.165385,2571.9,2571.2,3.88921]
[1723768189868,3.88833,2571.8,2571.2,7.77834]
[1723768190475,4.277075,2571.9,2571.3,3.88906]
[1723768190682,7.44,2572.2,2571.7,3.88839]
[1723768190987,3.88795,2572.1,2571.5,3.88867]
[1723768191147,3.88802,2572.0,2571.5,3.88867]
[1723768191473,3.88795,2572.1,2571.6,3.88858]
[1723768191674,19.77,2572.4,2571.8,2.2559]
[1723768191974,19.77,2572.4,2572.1,3.88787]
[1723768192182,0.26148577,2572.3,2572.1,3.88778]
[1723768193075,0.26148577,2572.3,2571.9,3.88807]
[1723768194157,0.26148577,2572.2,2571.9,3.88807]
[1723768194352,0.26148577,2572.1,2572.0,3.88802]
[1723768194553,19.77,2572.4,2572.2,6.27742]
[1723768194757,19.57,2572.5,2572.2,6.27742]
[1723768194758,7.6083038,2572.7,2572.2,6.27742]
[1723768194985,0.26150686,2572.6,2572.2,2.3897]
[1723768195186,0.26150686,2572.5,2572.2,2.3897]
[1723768195482,0.26150911,2572.4,2572.2,2.3897]
[1723768195686,0.26150911,2572.3,2572.2,2.3897]
[1723768199105,0.26152177,2572.3,2572.2,2.3897]
[1723768200061,0.26152177,2572.3,2571.9,7.77617]
[1723768200386,0.26152177,2572.2,2571.9,2.2522]
[1723768200682,0.26152177,2572.1,2571.9,6.14028]
[1723768200882,8.55896418,2572.5,2571.9,2.2522]
[1723768200883,0.26152177,2572.0,2571.9,2.2522]
[1723768201091,0.26152177,2572.2,2571.9,2.2522]
[1723768201383,0.85589642,2572.4,2571.9,2.2522]
[1723768201384,0.26152177,2572.1,2571.9,2.2522]
[1723768201682,4.74338642,2572.4,2571.9,2.2522]
[1723768201683,0.26164974,2572.0,2571.9,2.2522]
[1723768201883,0.26164974,2572.2,2571.9,37.2522]
[1723768202087,3.88802,2572.0,2571.9,35.0]
[1723768202389,4.14966974,2572.0,2571.9,35.0]
[1723768202570,4.14966974,2572.0,2571.5,2.3947]
[1723768202571,3.88819,2571.9,2571.5,2.3947]
[1723768202772,3.88819,2571.9,2571.2,2.3947]
[1723768202773,3.88851,2571.7,2571.2,2.3947]
[1723768203085,0.26164974,2571.6,2571.3,35.0]
[1723768203386,0.26164974,2571.5,2571.3,35.0]
[1723768203557,0.26164974,2571.4,2571.3,38.88908]
[1723768203757,0.2611428,2571.8,2571.7,2.3947]
[1723768203956,0.26114006,2571.9,2571.7,6.28317]
[1723768204154,0.26114006,2571.8,2571.7,6.28317]
[1723768204488,0.26114006,2572.1,2571.7,6.28317]
[1723768204821,0.26114006,2572.0,2571.7,41.28317]
[1723768204990,0.26114006,2571.9,2571.8,3.88832]
[1723768205488,0.26117878,2571.9,2571.8,3.88832]
[1723768205864,7.44,2572.2,2571.7,37.3947]
[1723768206054,0.26118554,2572.1,2571.7,41.28316]
[1723768206253,7.44,2572.2,2571.7,41.28316]
[1723768206254,0.26118554,2572.0,2571.7,41.28316]
[1723768206454,0.26118554,2571.9,2571.8,3.88832]
[1723768206761,0.26118554,2571.9,2571.7,41.28309]
[1723768206965,0.26118554,2571.8,2571.7,35.0]
[1723768208599,0.26118554,2571.9,2571.7,35.0]
[1723768208800,11.16486865,2572.2,2571.7,35.0]
[1723768208801,0.26118554,2571.8,2571.7,35.0]
[1723768209002,0.26118554,2572.1,2571.7,37.4721]
[1723768209178,0.26118554,2572.0,2571.7,35.0]
[1723768209378,0.26118554,2571.9,2571.7,35.0]
[1723768209609,12.70482,2572.2,2571.7,35.0]
[1723768209772,4.57623275,2572.1,2571.7,35.0]
[1723768210110,0.68825164,2572.0,2571.7,35.0]
[1723768210273,0.26127728,2571.9,2571.7,35.0]
[1723768210474,0.26127728,2571.8,2571.7,35.0]
[1723768210907,0.26127728,2571.8,2571.2,1.21657826]
[1723768210908,3.88887,2571.5,2571.2,0.814767]
[1723768211110,3.88923,2571.2,2570.8,0.814767]
[1723768211321,4.57773664,2571.1,2570.7,2.02853002]
[1723768211617,0.26127728,2571.0,2570.9,35.0]
[1723768211801,3.88902,2571.4,2570.9,35.0]
[1723768212113,8.55662195,2571.5,2571.0,2.2759]
[1723768212114,0.68832815,2571.3,2571.0,2.2759]
[1723768212353,3.88821,2571.9,2571.3,3.88899]
[1723768212483,4.57670837,2571.8,2571.3,2.2759]
[1723768212673,0.68836837,2571.7,2571.3,2.2759]
[1723768212873,0.26134844,2571.6,2571.5,3.88878]
[1723768213102,11.16621947,2572.1,2571.4,3.8889]
[1723768213103,15.05422947,2572.1,2571.6,3.88862]
[1723768213303,4.57638357,2572.0,2571.4,3.88879]
[1723768213490,0.42701463,2571.9,2571.4,3.88879]
[1723768213691,0.26132562,2571.8,2571.4,3.88879]
[1723768213893,0.26132562,2571.7,2571.4,7.77763]
[1723768214308,0.26132562,2571.6,2571.4,3.88879]
[1723768214473,3.88802,2572.0,2571.4,3.88879]
[1723768214669,0.68834012,2571.9,2571.5,3.88876]
[1723768214897,11.16667247,2572.1,2571.5,3.88876]
[1723768214898,0.68834012,2571.8,2571.5,3.88876]
[1723768215118,0.26133168,2571.7,2571.5,3.88876]
[1723768215317,11.3279,2572.1,2571.4,3.88879]
[1723768215318,0.26126247,2571.6,2571.4,3.88879]
[1723768215577,3.88803,2572.0,2571.4,3.88879]
[1723768215886,0.68818392,2571.9,2571.4,3.88879]
[1723768216111,0.68818392,2571.8,2571.3,4.3039278]
[1723768216300,0.68818392,2571.7,2571.2,3.88914]
[1723768216504,0.68818392,2571.6,2571.2,3.88914]
[1723768216686,0.68818392,2571.5,2571.0,2.4699]
[1723768216882,0.26127002,2571.4,2571.1,1.35223656]
[1723768217086,3.88865,2571.6,2571.0,2.4699]
[1723768217299,0.68803089,2571.5,2571.1,1.35216568]
[1723768217482,0.26120942,2571.4,2571.0,2.4699]
[1723768217803,3.8884,2571.8,2571.2,3.88922]
[1723768218007,2.3849,2571.9,2571.2,3.88922]
[1723768218008,0.68806985,2571.7,2571.2,3.88922]
[1723768218171,0.26122894,2571.6,2571.2,3.8891]
[1723768218375,0.26122894,2571.5,2571.2,3.8891]
[1723768218603,3.88841,2571.8,2571.2,3.8891]
[1723768218774,0.68811025,2571.7,2571.2,3.8891]
[1723768218971,0.68811025,2571.6,2571.2,3.8891]
[1723768219177,0.26124723,2571.5,2571.1,3.88937]
[1723768219406,0.26124723,2571.4,2571.2,3.88919]
[1723768219615,3.8885,2571.7,2571.2,3.88919]
[1723768219773,0.68817378,2571.6,2571.2,5.91729227]
[1723768220006,0.26127009,2571.5,2571.2,3.88919]
[1723768220240,0.2612675,2571.4,2571.2,3.88919]
[1723768220454,7.77708,2571.7,2571.2,3.88919]
[1723768220756,0.68817864,2571.6,2571.2,3.88919]
[1723768221043,0.26127653,2571.5,2571.2,3.88919]
[1723768221228,0.26127653,2571.4,2571.2,3.88919]
[1723768221433,7.77706,2571.7,2571.2,3.88919]
[1723768221434,3.8885,2571.7,2571.2,3.88919]
[1723768221752,0.26128491,2571.6,2571.3,1.35204539]
[1723768221916,3.88835,2571.8,2571.2,7.77834]
[1723768222111,0.68823181,2571.7,2571.2,7.77834]
[1723768222443,0.26128957,2571.6,2571.2,2.02811573]
[1723768222656,11.32796,2572.1,2571.4,2.2537]
[1723768222867,11.32796,2572.1,2571.4,6.1426]
[1723768222868,3.88817,2571.9,2571.4,6.1426]
[1723768223146,0.6882213,2571.8,2571.4,6.1426]
[1723768223311,0.26128661,2571.7,2571.5,38.88875]
[1723768223662,0.26128661,2571.6,2571.5,38.88875]
[1723768223856,0.26128661,2571.9,2571.5,38.88875]
[1723768224037,0.68822263,2571.8,2571.5,38.88875]
[1723768224361,0.26128661,2571.7,2571.5,38.88875]
[1723768224561,6.60633956,2572.1,2571.5,38.88875]
[1723768224859,0.68823935,2572.0,2571.5,42.77742]
[1723768225067,0.68823935,2571.9,2571.5,42.77742]
[1723768225279,0.26128462,2571.8,2571.5,38.88867]
[1723768225480,0.26129069,2571.7,2571.5,38.88867]
[1723768225627,3.88787,2572.1,2571.5,38.88867]
[1723768225827,0.6882597,2572.0,2571.5,38.88867]
[1723768226057,0.6882597,2571.9,2571.5,38.88867]
[1723768226237,0.26129089,2571.8,2571.6,3.88855]
[1723768226436,0.26129089,2571.7,2571.6,3.88855]
[1723768226642,4.14916828,2572.2,2571.7,3.88843]
[1723768226842,0.68833465,2572.1,2571.8,35.0]
[1723768227058,0.68833465,2572.0,2571.9,3.88817]
[1723768227359,0.68833465,2572.0,2571.9,10.20914]
[1723768227360,0.26131606,2572.0,2571.9,10.20914]
[1723768227581,0.26133235,2572.4,2572.0,3.8879]
[1723768227881,7.61345968,2572.6,2572.0,3.8879]
[1723768227882,0.68837695,2572.3,2572.0,3.8879]
[1723768228050,0.68837695,2572.2,2572.0,7.77584]
[1723768228250,0.26132517,2572.1,2572.0,3.8879]
[1723768229478,0.26132226,2572.1,2572.0,3.8879]
[1723768229677,3.72626968,2572.6,2572.0,3.8879]
[1723768229678,0.26132226,2572.5,2572.0,3.8879]
[1723768229846,0.42706136,2572.4,2572.1,3.88787]
[1723768230047,0.26130804,2572.3,2571.9,35.0]
[1723768230379,8.46392221,2572.2,2571.9,35.0]
[1723768230580,4.57618221,2572.1,2571.9,35.0]
[1723768230772,0.26130804,2572.0,2571.9,35.0]
[1723768231155,4.57626101,2572.0,2571.9,35.0]
[1723768231368,3.88841,2571.8,2571.2,2.4155]
[1723768231551,4.57680101,2571.7,2571.2,6.30471]
[1723768231866,4.57680101,2571.7,2571.1,3.88928]
[1723768231867,0.68824101,2571.6,2571.3,35.0]
[1723768232067,0.26130804,2571.5,2571.3,35.0]
[1723768232251,0.26130804,2571.4,2571.3,35.0]
[1723768232670,0.6880665,2571.4,2571.3,35.0]
[1723768233271,0.6880665,2571.4,2570.7,4.704677]
[1723768233272,4.5769965,2571.4,2570.7,3.88991]
[1723768233479,3.0276665,2571.3,2570.3,3.89053]
[1723768233720,3.88978,2570.9,2570.4,35.0]
[1723768233855,0.26130804,2570.8,2570.4,35.0]
[1723768234051,7.61639132,2571.1,2570.4,38.89032]
[1723768234052,0.26130804,2570.7,2570.4,38.89032]
[1723768234290,3.72693132,2571.2,2570.7,3.88996]
[1723768234291,3.88924,2571.2,2570.7,3.88996]
[1723768234454,0.68841067,2571.1,2570.6,3.8901]
[1723768234660,0.68841067,2571.1,2570.1,7.98253776]
[1723768234661,3.89004,2570.7,2569.9,4.705877]
[1723768234854,0.26138455,2570.6,2570.4,3.89044]
[1723768235075,0.26141283,2570.5,2570.4,3.89044]
[1723768235286,3.88977,2570.9,2570.3,3.89058]
[1723768235460,0.26140977,2570.8,2570.3,3.89058]
[1723768235665,0.26140977,2570.8,2570.4,35.0]
[1723768236256,3.88942,2571.1,2570.5,3.89027]
[1723768236455,4.15100081,2571.0,2570.4,38.89041]
[1723768236655,3.88995,2570.8,2570.4,35.0]
[1723768236900,0.26142081,2570.7,2570.4,35.0]
[1723768237274,3.88961,2571.0,2570.4,35.0]
[1723768237493,0.26142087,2570.9,2570.4,35.0]
[1723768237915,0.26142087,2570.9,2570.4,38.89041]
[1723768238370,4.15119087,2570.9,2570.4,35.0]
[1723768238568,0.26142087,2570.8,2570.4,35.0]
[1723768238793,0.26142087,2570.8,2570.7,3.88999]
[1723768238993,6.9020851,2571.8,2570.7,3.88999]
[1723768238994,13.8258923,2571.8,2571.1,3.88931]
[1723768239200,13.8258923,2571.8,2571.0,3.88939]
[1723768239201,0.26143259,2571.7,2571.0,3.88939]
[1723768239406,0.26143259,2571.7,2571.3,3.88905]
[1723768239566,0.26143259,2571.7,2571.2,3.88912]
[1723768239567,0.26143259,2571.7,2571.5,3.88877]
[1723768239772,6.32118,2572.2,2571.4,38.88891]
[1723768239967,0.68856402,2572.1,2571.4,38.88891]
[1723768240167,0.68856402,2572.0,2571.4,38.88891]
[1723768240505,0.26140711,2571.9,2571.4,42.77766]
[1723768241406,7.32599823,2572.2,2571.5,3.88863]
[1723768241575,0.26139152,2572.1,2571.5,3.88863]
[1723768241770,3.88791,2572.1,2571.5,3.88863]
[1723768241971,4.14941889,2572.0,2571.4,38.88883]
[1723768242202,0.26138889,2571.9,2571.4,38.88883]
[1723768242610,0.26138889,2571.9,2571.5,3.88875]
[1723768242977,0.26138889,2571.9,2571.4,38.88883]
[1723768243179,0.2614294,2571.8,2571.4,38.88883]
[1723768243397,0.26142656,2571.7,2571.4,38.88883]
[1723768243708,5.00943282,2572.0,2571.4,38.88883]
[1723768243906,3.88848,2571.7,2571.4,35.0]
[1723768244078,0.65027587,2571.6,2571.4,35.0]
[1723768244281,0.26142787,2571.5,2571.4,35.0]
[1723768245621,0.26139952,2571.5,2571.4,35.0]
[1723768246676,4.15017952,2571.5,2571.4,35.0]
[1723768246877,4.57728262,2571.5,2571.4,35.0]
[1723768247111,5.26474458,2571.5,2571.4,35.0]
[1723768247407,1.37596458,2571.5,2571.4,35.0]
[1723768248108,1.80302319,2571.5,2571.4,35.0]
[1723768248481,1.37596458,2571.5,2571.4,35.0]
[1723768248704,0.26139952,2571.5,2571.4,35.0]
[1723768249292,3.72743342,2572.0,2571.4,38.88893]
[1723768249293,3.88811,2572.0,2571.4,38.88893]
[1723768249490,0.26140657,2571.9,2571.4,38.88893]
[1723768249813,0.68854846,2571.9,2571.4,35.0]
[1723768250048,0.26140657,2571.8,2571.4,35.0]
[1723768250181,13.61018,2572.2,2571.5,3.88868]
[1723768250382,2.42234113,2572.1,2571.6,3.8886]
[1723768250582,0.68854475,2572.0,2571.6,3.8886]
[1723768250814,0.68854854,2571.9,2571.7,3.88846]
[1723768251015,3.88751,2572.4,2571.7,3.88846]
[1723768251016,3.88751,2572.4,2571.8,3.88819]
[1723768251311,0.68863029,2572.3,2571.9,3.88812]
[1723768251520,0.26142432,2572.2,2572.0,3.888]
[1723768251693,0.26142432,2572.1,2572.0,3.888]
[1723768251892,7.59494838,2572.6,2572.0,3.888]
[1723768252118,0.2614229,2572.5,2572.1,35.0]
[1723768252411,1.20377628,2572.5,2572.1,35.0]
[1723768252612,0.2614229,2572.4,2572.1,35.0]
[1723768253328,0.2614229,2572.4,2572.1,38.88783]
[1723768253478,7.44,2572.7,2572.1,38.88783]
[1723768253479,0.42723222,2572.5,2572.1,38.88783]
[1723768253677,0.26141297,2572.4,2572.1,38.88783]
[1723768253886,0.42723222,2572.5,2572.1,38.88783]
[1723768254089,0.26141935,2572.4,2572.1,38.88783]
[1723768254383,0.42723222,2572.5,2572.1,38.88783]
[1723768254588,0.26141879,2572.4,2572.1,38.88783]
[1723768254788,0.42723222,2572.5,2572.1,38.88783]
[1723768255124,0.42723222,2572.5,2572.2,3.88771]
[1723768255298,0.42723222,2572.5,2572.1,38.88783]
[1723768255817,0.26146091,2572.4,2572.1,38.88778]
[1723768256200,0.42723222,2572.5,2572.1,38.88778]
[1723768256792,0.42723222,2572.5,2572.1,42.77556]
[1723768257225,1.60265244,2572.5,2572.1,35.0]
[1723768257426,0.42723222,2572.5,2572.1,38.88773]
[1723768257724,0.42723222,2572.5,2572.1,42.77551]
[1723768257924,0.42723222,2572.5,2572.1,38.88773]
[1723768258125,0.42723222,2572.5,2572.1,42.77552]
[1723768258422,0.42723222,2572.5,2572.3,3.88755]
[1723768258622,0.42723222,2572.5,2572.1,38.88773]
[1723768259033,0.42723222,2572.5,2572.2,3.8876]
[1723768260426,0.42723222,2572.5,2572.1,35.0]
[1723768260630,3.88812,2572.0,2571.4,3.88889]
[1723768260803,3.88812,2572.0,2571.1,3.88928]
[1723768261123,3.88812,2572.0,2571.2,35.0]
[1723768261295,4.276932,2572.0,2571.2,35.0]
[1723768261717,3.88833,2571.8,2571.3,3.88908]
[1723768262015,4.276932,2572.0,2571.5,3.88874]
[1723768262201,3.88812,2572.0,2571.5,3.88874]
[1723768262527,4.665712,2572.0,2571.6,35.0]
[1723768263001,8.553842,2572.0,2571.6,35.0]
[1723768263192,3.88847,2571.7,2571.6,35.0]
[1723768263397,6.16001,2571.8,2571.6,35.0]
[1723768263618,10.04848,2571.8,2571.6,35.0]
[1723768263808,10.04843,2571.8,2571.6,35.0]
[1723768264020,6.16001,2571.8,2571.6,35.0]
[1723768264216,3.88841,2571.8,2571.6,35.0]
[1723768266122,7.77683,2571.8,2571.6,35.0]
[1723768266318,0.26142502,2571.7,2571.2,3.88923]
[1723768266519,3.88841,2571.8,2571.2,3.88923]
[1723768266710,0.26141584,2571.7,2571.2,3.88923]
[1723768267038,3.88841,2571.8,2571.3,35.0]
[1723768267194,0.26141148,2571.7,2571.3,35.0]
[1723768267709,3.8881,2572.0,2571.5,3.88869]
[1723768267893,0.26141138,2571.9,2571.5,3.88869]
[1723768268095,0.26141138,2571.9,2571.5,6.15179]
[1723768268399,6.29265,2572.2,2571.6,35.0]
[1723768268599,0.26141778,2572.1,2571.6,35.0]
[1723768269143,0.26141778,2572.1,2571.7,3.88845]
[1723768269836,0.26142128,2572.0,2571.8,35.0]
[1723768270142,0.26142128,2571.9,2571.8,35.0]
[1723768270445,3.88775,2572.2,2571.8,35.0]
[1723768270446,0.26142128,2572.1,2571.8,35.0]
[1723768270641,0.26142128,2572.0,2571.8,35.0]
[1723768270982,0.26142128,2571.9,2571.8,38.88832]
[1723768271247,3.88712,2572.6,2572.0,3.88793]
[1723768271418,0.26143654,2572.5,2572.1,3.88785]
[1723768271742,3.88709,2572.7,2572.0,3.88791]
[1723768271743,0.26143654,2572.4,2572.0,3.88791]
[1723768271943,9.97257956,2572.7,2571.8,38.88823]
[1723768271944,0.26143654,2572.3,2572.1,3.88784]
[1723768272149,6.963523,2572.7,2572.1,3.88784]
[1723768272150,3.88709,2572.7,2572.2,3.88761]
[1723768272312,0.26142107,2572.6,2572.3,3.88753]
[1723768272511,0.26142107,2572.5,2572.3,3.88753]
[1723768272752,0.26142107,2572.4,2572.3,3.88753]
[1723768273313,0.26142107,2572.7,2572.3,3.88753]
[1723768273509,0.26142107,2572.6,2572.3,3.88753]
[1723768273813,0.26142107,2572.5,2572.1,7.77551]
[1723768274014,0.26142107,2572.4,2572.1,7.77551]
[1723768274237,3.88697,2572.7,2572.2,3.88768]
[1723768274447,0.26134234,2572.6,2572.2,3.88768]
[1723768274649,4.56329357,2572.6,2572.1,3.88773]
[1723768274946,0.26134234,2572.5,2572.1,3.88773]
[1723768276421,0.26134234,2572.5,2571.9,6.33433]
[1723768276621,0.26134234,2572.5,2571.9,3.88803]
[1723768276622,6.62332234,2572.5,2571.9,3.88803]
[1723768276826,0.26134234,2572.4,2571.9,7.77611]
[1723768277131,0.26134234,2572.4,2572.0,3.88799]
[1723768277446,0.26134234,2572.4,2572.1,3.88785]
[1723768277653,0.26134234,2572.3,2572.1,3.88785]
[1723768277852,4.64849596,2572.7,2572.1,3.88785]
[1723768278054,0.26133194,2572.6,2572.1,3.88785]
[1723768278247,0.26132492,2572.5,2572.1,3.88785]
[1723768278438,0.26132492,2572.4,2572.1,3.88785]
[1723768278609,0.26132492,2572.3,2572.1,3.88785]
[1723768278814,4.64849596,2572.7,2572.1,7.7757]
[1723768279011,0.26132172,2572.6,2572.2,3.88759]
[1723768279209,0.26132172,2572.5,2572.2,3.88759]
[1723768279445,3.8869,2572.8,2572.2,3.88759]
[1723768279643,0.26133378,2572.7,2572.2,7.77522]
[1723768280145,0.26133378,2572.6,2572.3,35.0]
[1723768280350,3.88672,2572.9,2572.3,38.88747]
[1723768280646,3.88672,2572.9,2572.3,35.0]
[1723768280647,4.1481835,2572.8,2572.3,35.0]
[1723768280845,5.27406868,2572.9,2572.3,35.0]
[1723768280846,0.2613635,2572.7,2572.3,41.24725]
[1723768281045,0.2613635,2572.6,2572.3,37.3597]
[1723768281221,0.2613635,2572.5,2572.3,35.0]
[1723768281434,4.80290887,2572.8,2572.3,35.0]
[1723768281617,0.26137121,2572.7,2572.3,35.0]
[1723768281813,0.26137368,2572.6,2572.3,35.0]
[1723768282049,0.26137368,2572.5,2572.3,35.0]
[1723768282246,4.80290887,2572.8,2572.3,35.0]
[1723768282450,8.9044718,2572.7,2572.3,35.0]
[1723768282653,0.26136891,2572.6,2572.3,35.0]
[1723768282945,0.26136891,2572.5,2572.3,35.0]
[1723768283147,4.14874891,2572.5,2572.3,35.0]
[1723768283346,0.26136891,2572.4,2572.3,35.0]
[1723768285536,4.14860891,2572.6,2572.3,35.0]
[1723768285743,4.275938,2572.6,2572.3,35.0]
[1723768285957,0.26133631,2572.5,2572.3,35.0]
[1723768286458,0.26133631,2572.4,2572.3,35.0]
[1723768287663,0.71506674,2572.4,2572.3,35.0]
[1723768288963,0.71506674,2572.4,2572.3,38.88757]
[1723768288964,0.26133631,2572.4,2572.3,38.88757]
[1723768289165,10.10922058,2572.9,2572.3,35.0]
[1723768289166,7.77376,2572.8,2572.3,35.0]
[1723768289337,0.26140409,2572.7,2572.3,35.0]
[1723768289530,0.26140409,2572.6,2572.3,38.88754]
[1723768289731,0.26140538,2572.5,2572.3,38.88754]
[1723768289956,3.88686,2572.8,2572.3,38.88754]
[1723768290152,0.2614208,2572.7,2572.3,38.88754]
[1723768290339,0.2614208,2572.7,2572.3,35.0]
[1723768291163,0.2614208,2572.7,2572.3,38.88753]
[1723768291464,0.2614208,2572.6,2572.3,35.0]
[1723768291634,0.2614208,2572.5,2572.3,35.0]
[1723768291829,0.2614208,2572.4,2572.3,35.0]
[1723768292254,1.026847,2572.8,2572.3,35.0]
[1723768292255,8.0361208,2572.5,2572.3,35.0]
[1723768292537,0.2614208,2572.4,2572.3,35.0]
[1723768293671,4.61213293,2572.7,2572.3,35.0]
[1723768293865,4.57558113,2572.6,2572.3,35.0]
[1723768294067,0.26133466,2572.5,2572.3,35.0]
[1723768294268,0.68842333,2572.5,2572.3,35.0]
[1723768294467,0.26132299,2572.4,2572.3,35.0]
[1723768294966,3.88668,2572.9,2572.3,38.88747]
[1723768295154,0.68839686,2572.8,2572.3,38.88747]
[1723768295357,0.68839686,2572.7,2572.3,35.0]
[1723768295567,3.88774,2572.2,2571.6,7.072677]
[1723768295767,0.26129619,2572.1,2572.0,3.88802]
[1723768296067,3.88719,2572.6,2572.0,38.88802]
[1723768296267,0.68831906,2572.5,2572.0,38.88802]
[1723768296474,0.26126844,2572.4,2572.0,38.88802]
[1723768296669,0.26126844,2572.3,2572.0,38.88802]
[1723768296870,0.26126844,2572.2,2572.0,38.88802]
[1723768297097,0.26126844,2572.1,2572.0,38.88802]
[1723768297237,3.72649495,2572.8,2572.3,3.88754]
[1723768297595,0.68833695,2572.7,2572.3,7.77493]
[1723768297743,0.26128469,2572.6,2572.3,7.77493]
[1723768297948,3.88668,2572.9,2572.3,3.88745]
[1723768298171,0.68834081,2572.8,2572.4,3.88741]
[1723768298497,0.68834081,2572.8,2572.1,2.2573]
[1723768298498,11.32629,2573.2,2572.6,6.14441]
[1723768298704,3.98854978,2573.1,2572.6,2.2573]
[1723768298974,0.26129428,2573.0,2572.6,2.2573]
[1723768299192,0.26129428,2572.9,2572.6,6.14433]